bitfinex-derivatives/quotes_BTCF0:USTF0_20240820
["timestamp","ask_amount","ask_price","bid_price","bid_amount"]
[1724130636969,0.002,60929.0,60928.0,1.89335797]
[1724130637161,0.002,60929.0,60928.0,1.95862104]
[1724130637464,0.002,60929.0,60928.0,1.9328563]
[1724130637856,0.002,60929.0,60928.0,1.95849499]
[1724130638365,0.002,60929.0,60928.0,1.55849499]
[1724130638763,0.002,60929.0,60928.0,1.5328563]
[1724130638962,0.002,60929.0,60928.0,1.467719]
[1724130639359,0.002,60929.0,60928.0,1.5328563]
[1724130640674,0.002,60929.0,60928.0,1.0404563]
[1724130641758,0.002,60929.0,60928.0,1.06609599]
[1724130643870,0.002,60929.0,60928.0,1.00095869]
[1724130646477,0.002,60929.0,60928.0,1.11435869]
[1724130648076,0.002,60929.0,60928.0,1.15753458]
[1724130648481,0.002,60929.0,60928.0,1.15753417]
[1724130651181,0.00014808,60936.0,60928.0,1.15753417]
[1724130651182,0.08188381,60943.0,60942.0,0.082]
[1724130651375,0.08188381,60943.0,60942.0,0.2385726]
[1724130652175,0.08188381,60943.0,60942.0,0.26420653]
[1724130652674,0.08188381,60943.0,60942.0,0.26520653]
[1724130653380,0.08188381,60943.0,60942.0,0.23957175]
[1724130653881,0.3608,60946.0,60942.0,1.11387175]
[1724130654073,0.3608,60946.0,60945.0,0.1134]
[1724130654380,0.3608,60946.0,60945.0,0.15657175]
[1724130655075,0.3608,60946.0,60945.0,0.0745022]
[1724130655276,0.3608,60946.0,60945.0,0.02563969]
[1724130655583,0.3608,60946.0,60945.0,0.13903969]
[1724130655774,4.1338,60946.0,60945.0,0.13903969]
[1724130655973,4.1358,60946.0,60945.0,0.13903969]
[1724130656473,4.1358,60946.0,60945.0,0.13903642]
[1724130657581,4.1358,60946.0,60945.0,0.1134]
[1724130657884,3.775,60946.0,60945.0,0.1134]
[1724130658774,0.005,60946.0,60945.0,0.1134]
[1724130659484,0.005,60946.0,60945.0,0.22103131]
[1724130660673,0.005,60946.0,60945.0,0.22103089]
[1724130661181,0.005,60946.0,60945.0,0.195396]
[1724130661378,0.005,60946.0,60945.0,1.12096556]
[1724130661574,0.005,60946.0,60945.0,1.63074458]
[1724130661878,0.005,60946.0,60945.0,1.69589898]
[1724130662078,0.005,60946.0,60945.0,2.03074458]
[1724130662279,0.005,60946.0,60945.0,2.09587557]
[1724130662985,0.005,60946.0,60945.0,2.10470683]
[1724130663688,0.005,60946.0,60945.0,2.02202874]
[1724130664286,0.005,60946.0,60945.0,2.03956798]
[1724130664480,0.3608,60959.0,60945.0,2.03956798]
[1724130664481,0.04905988,60956.0,60955.0,0.081983]
[1724130664679,0.04905988,60960.0,60958.0,0.081979]
[1724130664881,0.04905988,60962.0,60960.0,0.081976]
[1724130665184,0.3608,60965.0,60964.0,0.081971]
[1724130665387,0.4098088,60965.0,60964.0,0.081971]
[1724130666286,0.3608,60965.0,60964.0,0.081971]
[1724130666682,0.3698,60965.0,60964.0,0.082971]
[1724130667282,0.3838,60965.0,60964.0,0.083971]
[1724130668079,0.3838,60965.0,60964.0,0.0928795]
[1724130668687,0.3838,60965.0,60964.0,0.9671795]
[1724130674200,0.3748,60965.0,60964.0,0.9661795]
[1724130674493,0.3798,60965.0,60964.0,0.9671795]
[1724130675591,0.3798,60965.0,60964.0,0.958271]
[1724130675791,0.3798,60965.0,60964.0,0.8763]
[1724130676790,0.3798,60965.0,60964.0,0.958271]
[1724130677191,0.601769,60965.0,60964.0,0.8763]
[1724130677411,1.093849,60965.0,60964.0,0.8763]
[1724130677599,0.081977,60959.0,60958.0,0.00024612]
[1724130678905,0.081977,60959.0,60958.0,0.00124612]
[1724130679204,0.094977,60959.0,60958.0,0.00224612]
[1724130685128,0.10607899,60959.0,60958.0,0.00224612]
[1724130685923,0.25329495,60959.0,60958.0,1e-08]
[1724130686122,0.082,60943.0,60940.0,0.3261]
[1724130686313,0.3608,60943.0,60939.0,0.87618]
[1724130686519,3.90100654,60942.0,60939.0,0.8743]
[1724130686821,0.13100754,60940.0,60939.0,0.8743]
[1724130687324,0.14734238,60940.0,60939.0,0.8743]
[1724130687517,0.082003,60940.0,60939.0,0.8743]
[1724130687718,0.130703,60940.0,60939.0,0.8743]
[1724130688527,0.131703,60940.0,60939.0,0.8863]
[1724130688926,3.901703,60940.0,60939.0,0.8863]
[1724130689419,3.95169639,60940.0,60939.0,0.026]
[1724130690325,3.902703,60940.0,60939.0,0.026]
[1724130691025,3.91402598,60940.0,60939.0,0.026]
[1724130693630,4.27482598,60940.0,60939.0,0.026]
[1724130695326,4.32402598,60940.0,60939.0,0.026]
[1724130697332,4.48402598,60940.0,60939.0,0.026]
[1724130698633,4.48402598,60940.0,60936.0,0.0001818]
[1724130698634,0.082006,60939.0,60936.0,0.0001818]
[1724130698834,0.130506,60939.0,60936.0,0.0001818]
[1724130699330,0.082007,60938.0,60936.0,0.0001818]
[1724130700428,0.082007,60938.0,60936.0,0.0071818]
[1724130700733,0.082007,60938.0,60936.0,0.0081818]
[1724130701126,0.083007,60938.0,60936.0,0.0081818]
[1724130701533,0.084007,60938.0,60936.0,0.0081818]
[1724130703435,0.002,60938.0,60936.0,0.0901898]
[1724130703638,0.002,60938.0,60936.0,0.0081818]
[1724130704026,0.002,60938.0,60937.0,0.130707]
[1724130704230,0.3608,60951.0,60945.0,0.081996]
[1724130704430,0.3608,60951.0,60945.0,0.365596]
[1724130704627,0.3608,60951.0,60950.0,0.08199]
[1724130707340,0.3608,60951.0,60950.0,0.95629]
[1724130707728,0.3608,60951.0,60950.0,0.95829]
[1724130707933,0.3608,60951.0,60950.0,0.96943931]
[1724130708640,0.01155568,60957.0,60950.0,0.96943931]
[1724130708641,0.00024612,60957.0,60956.0,0.081981]
[1724130708842,0.00024612,60957.0,60956.0,0.956281]
[1724130709139,0.00024612,60957.0,60956.0,1.448441]
[1724130710830,0.00724612,60957.0,60956.0,1.449441]
[1724130711138,0.01224612,60957.0,60956.0,1.449441]
[1724130712846,0.01224612,60957.0,60956.0,0.957281]
[1724130717145,0.01224612,60957.0,60956.0,0.082981]
[1724130720343,0.01224612,60957.0,60956.0,0.001]
[1724130720553,0.06117602,60957.0,60956.0,0.001]
[1724130721552,0.01224612,60957.0,60956.0,0.001]
[1724130722550,0.01224612,60957.0,60956.0,0.082981]
[1724130722953,0.01224612,60957.0,60956.0,2.210241]
[1724130723250,0.03317603,60965.0,60956.0,2.12826]
[1724130723450,0.06532452,60971.0,60967.0,0.081967]
[1724130723649,0.14728552,60972.0,60967.0,0.081967]
[1724130724046,0.081961,60972.0,60967.0,0.081967]
[1724130724352,0.06532452,60973.0,60963.0,0.04794612]
[1724130724557,0.00024612,60976.0,60964.0,0.081971]
[1724130724558,0.005,60965.0,60964.0,0.081971]
[1724130725455,0.005,60965.0,60964.0,0.10759455]
[1724130725760,0.018,60965.0,60964.0,0.60067455]
[1724130726163,0.018,60965.0,60964.0,1.87497455]
[1724130726454,0.018,60965.0,60964.0,1.87497032]
[1724130726765,0.018,60965.0,60964.0,1.88589694]
[1724130726943,0.018,60965.0,60964.0,1.48589694]
[1724130726944,0.013,60965.0,60964.0,1.48589694]
[1724130727350,0.013,60965.0,60964.0,1.88589694]
[1724130727850,0.00024612,60976.0,60964.0,0.91184594]
[1724130728056,0.00024612,60976.0,60972.0,0.3608]
[1724130728247,0.3608,60975.0,60966.0,0.04858462]
[1724130728449,0.081959,60973.0,60967.0,0.081967]
[1724130728850,3.77,60972.0,60967.0,0.081967]
[1724130729252,0.081959,60973.0,60964.0,0.87826]
[1724130729442,0.081959,60973.0,60964.0,0.8763]
[1724130729851,3.77,60972.0,60964.0,0.8763]
[1724130730051,3.77,60972.0,60969.0,0.081964]
[1724130730459,3.77,60972.0,60970.0,0.081962]
[1724130732562,3.77,60972.0,60971.0,0.081961]
[1724130733646,3.77,60972.0,60970.0,0.001]
[1724130733852,3.77,60972.0,60965.0,1.317068]
[1724130733853,0.49204,60971.0,60965.0,0.8743]
[1724130734053,0.442768,60966.0,60965.0,0.8743]
[1724130735655,0.450768,60966.0,60965.0,0.8753]
[1724130736961,0.3688,60966.0,60965.0,0.8753]
[1724130737151,0.3688,60966.0,60965.0,0.001]
[1724130739053,0.3688,60966.0,60965.0,0.366569]
[1724130739054,0.008,60966.0,60965.0,0.366569]
[1724130739357,0.008,60966.0,60965.0,0.411869]
[1724130739561,0.008,60966.0,60965.0,0.366569]
[1724130741051,0.008,60966.0,60965.0,0.082969]
[1724130743759,0.008,60966.0,60965.0,0.001]
[1724130744261,0.07332452,60966.0,60965.0,0.001]
[1724130744460,0.70540452,60966.0,60955.0,0.0487492]
[1724130744666,0.3608,60961.0,60955.0,0.081983]
[1724130744868,0.3608,60961.0,60955.0,0.1307322]
[1724130745964,0.3608,60961.0,60955.0,0.1337322]
[1724130746265,0.081978,60959.0,60955.0,0.1337322]
[1724130746458,0.081978,60959.0,60955.0,0.1367322]
[1724130747459,0.081978,60959.0,60955.0,0.087983]
[1724130747663,0.081978,60959.0,60955.0,0.086983]
[1724130748559,0.081978,60959.0,60955.0,0.085983]
[1724130748967,0.081978,60959.0,60955.0,0.1347322]
[1724130750265,0.081979,60958.0,60955.0,0.085983]
[1724130751359,0.08198,60957.0,60955.0,0.085983]
[1724130753565,0.08198,60957.0,60955.0,0.084983]
[1724130753760,0.37169963,60961.0,60955.0,0.084983]
[1724130753761,0.081981,60956.0,60955.0,0.003]
[1724130753966,0.081981,60956.0,60955.0,0.002]
[1724130754762,0.081981,60956.0,60955.0,0.001]
[1724130755070,0.001,60957.0,60952.0,0.00024612]
[1724130755263,0.081984,60954.0,60953.0,0.02563006]
[1724130755658,0.081984,60954.0,60952.0,0.00024612]
[1724130755659,0.081986,60953.0,60952.0,0.00024612]
[1724130756273,3.851986,60953.0,60952.0,0.00024612]
[1724130757168,4.212786,60953.0,60952.0,0.00024612]
[1724130757471,4.213786,60953.0,60952.0,0.00024612]
[1724130757969,4.214786,60953.0,60952.0,0.00024612]
[1724130758175,4.213786,60953.0,60952.0,0.00024612]
[1724130759567,4.22501436,60953.0,60952.0,0.00024612]
[1724130760268,4.22701436,60953.0,60952.0,0.00024612]
[1724130760770,4.22601436,60953.0,60952.0,0.00024612]
[1724130761074,4.22401436,60953.0,60952.0,0.00024612]
[1724130761259,4.22501436,60953.0,60952.0,0.00024612]
[1724130761773,4.22601436,60953.0,60952.0,0.00024612]
[1724130761975,4.22501436,60953.0,60952.0,0.00024612]
[1724130762160,4.22701436,60953.0,60952.0,0.00024612]
[1724130763565,4.22601436,60953.0,60952.0,0.00024612]
[1724130763766,4.22701436,60953.0,60952.0,0.00024612]
[1724130764168,4.22801436,60953.0,60952.0,0.00024612]
[1724130764367,4.22701436,60953.0,60952.0,0.00024612]
[1724130764673,4.22801436,60953.0,60952.0,0.00024612]
[1724130765073,4.22401436,60953.0,60952.0,0.00024612]
[1724130765383,4.22501436,60953.0,60952.0,0.00124612]
[1724130767172,4.22801436,60953.0,60952.0,0.00024612]
[1724130767575,0.446786,60953.0,60952.0,0.28384612]
[1724130768081,0.443786,60953.0,60952.0,0.28384612]
[1724130768277,0.3608,60953.0,60952.0,0.36683312]
[1724130768579,0.3608,60953.0,60952.0,0.19663312]
[1724130768979,0.3608,60953.0,60952.0,0.19863312]
[1724130770279,0.3608,60953.0,60952.0,0.20163312]
[1724130770480,0.3608,60953.0,60952.0,0.08823312]
[1724130770673,0.3608,60953.0,60952.0,0.13698232]
[1724130770873,0.3618,60953.0,60952.0,0.13898232]
[1724130771076,0.3618,60953.0,60952.0,0.09023312]
[1724130771376,0.3618,60953.0,60952.0,0.13898232]
[1724130771769,0.3618,60953.0,60952.0,0.14098232]
[1724130771972,0.001,60953.0,60952.0,0.14098232]
[1724130772167,0.01112086,60955.0,60952.0,0.13598232]
[1724130772380,0.42612452,60956.0,60953.0,0.1307332]
[1724130772979,0.42612452,60956.0,60954.0,0.081984]
[1724130773376,0.06532452,60955.0,60954.0,0.081984]
[1724130773779,0.06532452,60955.0,60954.0,0.1307332]
[1724130774678,0.37199738,60956.0,60954.0,0.1317332]
[1724130774986,0.37199738,60956.0,60954.0,0.1327332]
[1724130775178,0.37199738,60956.0,60954.0,0.1317332]
[1724130775375,0.37199738,60956.0,60954.0,0.1347332]
[1724130775585,0.01119738,60956.0,60954.0,0.1347332]
[1724130775885,0.081983,60955.0,60954.0,0.0527492]
[1724130776777,0.081983,60955.0,60954.0,0.004]
[1724130776973,0.081983,60955.0,60954.0,0.02663158]
[1724130777179,0.081983,60955.0,60954.0,0.02963158]
[1724130777578,0.081983,60955.0,60954.0,0.02863158]
[1724130777778,0.081983,60955.0,60954.0,0.02563158]
[1724130777976,0.082983,60955.0,60954.0,0.02563158]
[1724130778380,0.082983,60955.0,60954.0,0.10761558]
[1724130778890,0.081983,60955.0,60954.0,0.10761558]
[1724130779079,0.081983,60955.0,60954.0,0.10961547]
[1724130780178,0.081983,60955.0,60954.0,0.11161547]
[1724130780882,0.081983,60955.0,60954.0,0.11061547]
[1724130781583,0.081983,60955.0,60954.0,0.11161547]
[1724130783482,0.081983,60955.0,60954.0,0.17570186]
[1724130783687,0.081983,60955.0,60954.0,0.11061547]
[1724130783884,0.081983,60955.0,60954.0,0.17370186]
[1724130784092,0.081983,60955.0,60954.0,0.17470186]
[1724130784989,0.082983,60955.0,60954.0,0.17270186]
[1724130785381,0.06656255,60955.0,60954.0,0.10761547]
[1724130785681,0.001,60955.0,60954.0,0.10761547]
[1724130786194,0.001,60955.0,60954.0,0.13324561]
[1724130786395,0.001,60955.0,60954.0,0.10761547]
[1724130786582,0.001,60955.0,60954.0,0.13424428]
[1724130786781,0.06652256,60957.0,60954.0,0.94442028]
[1724130786984,0.42636255,60958.0,60957.0,0.08198]
[1724130787184,0.42636255,60958.0,60957.0,0.1332396]
[1724130787393,0.3608,60958.0,60957.0,0.1332396]
[1724130788189,0.3608,60958.0,60957.0,0.6253996]
[1724130788387,0.3608,60958.0,60957.0,0.70819102]
[1724130788589,0.3638,60958.0,60957.0,0.64294354]
[1724130788785,0.3638,60958.0,60957.0,0.15078354]
[1724130788985,0.003,60958.0,60957.0,0.64294354]
[1724130789288,0.00175388,60958.0,60957.0,1.47134534]
[1724130789490,0.00175388,60958.0,60957.0,1.59623406]
[1724130790589,0.00175388,60958.0,60957.0,2.47053406]
[1724130791293,0.00175388,60958.0,60957.0,2.47050224]
[1724130791999,0.00175388,60958.0,60957.0,2.48143109]
[1724130792585,0.00175388,60958.0,60957.0,2.59483109]
[1724130793191,0.00175388,60958.0,60957.0,2.16823792]
[1724130793401,0.00175388,60958.0,60957.0,2.19483174]
[1724130793794,0.00175388,60958.0,60957.0,2.59483174]
[1724130793990,0.00175388,60958.0,60957.0,2.95563174]
[1724130794186,0.00175388,60958.0,60957.0,1.75759162]
[1724130794393,0.00175388,60958.0,60957.0,1.87099162]
[1724130794593,0.00175388,60958.0,60957.0,1.93610194]
[1724130795397,0.36255388,60958.0,60957.0,1.10623233]
[1724130795603,0.00175388,60958.0,60957.0,1.10623233]
[1724130795897,0.36255388,60958.0,60957.0,1.15508265]
[1724130796100,0.36255388,60958.0,60957.0,1.10623804]
[1724130796604,0.36255388,60958.0,60957.0,0.23193804]
[1724130800395,0.36255388,60958.0,60957.0,0.22100988]
[1724130800804,0.36255388,60958.0,60957.0,0.22100989]
[1724130801590,0.36255388,60958.0,60957.0,0.10760989]
[1724130802091,0.36255388,60958.0,60957.0,0.22100989]
[1724130802296,4.13255388,60958.0,60957.0,0.22100989]
[1724130805404,4.13255388,60958.0,60957.0,0.19538]
[1724130806204,4.13255388,60958.0,60957.0,0.22101046]
[1724130808812,4.13255388,60958.0,60957.0,0.22101031]
[1724130809306,0.36255388,60958.0,60957.0,0.22101031]
[1724130811699,0.00175388,60958.0,60957.0,0.22101031]
[1724130811907,0.00175388,60958.0,60957.0,0.24663827]
[1724130812106,0.00175388,60958.0,60957.0,0.32929581]
[1724130812906,0.00175388,60958.0,60957.0,0.32929321]
[1724130813303,0.00175388,60958.0,60957.0,0.28611803]
[1724130813517,0.00175388,60958.0,60957.0,0.32929193]
[1724130814110,0.00175388,60958.0,60957.0,0.31174574]
[1724130814410,0.00175388,60958.0,60957.0,0.26418039]
[1724130815108,0.00175388,60958.0,60957.0,0.23855268]
[1724130815307,0.00175388,60958.0,60957.0,0.2641804]
[1724130817115,0.00175388,60958.0,60957.0,0.23854352]
[1724130817314,0.00175388,60958.0,60957.0,0.26417123]
[1724130818521,0.00175388,60958.0,60957.0,0.32928776]
[1724130820517,0.00175388,60958.0,60957.0,1.22045123]
[1724130821419,0.00175388,60958.0,60957.0,1.17728771]
[1724130821623,0.00175388,60958.0,60957.0,1.22044111]
[1724130825620,0.00175388,60958.0,60957.0,1.22044316]
[1724130826319,0.00175388,60958.0,60957.0,1.22044208]
[1724130827425,0.00175388,60958.0,60957.0,1.30181036]
[1724130828623,0.00175388,60958.0,60957.0,1.22044208]
[1724130829131,0.00175388,60958.0,60957.0,1.38633942]
[1724130829529,0.00175388,60958.0,60957.0,1.30187827]
[1724130829826,0.00175388,60958.0,60957.0,1.30187782]
[1724130830222,0.00175388,60958.0,60957.0,1.22044163]
[1724130835228,0.00175388,60958.0,60957.0,1.30187782]
[1724130835834,0.00175388,60958.0,60957.0,1.42677227]
[1724130836337,0.00175388,60958.0,60957.0,1.46777504]
[1724130836728,0.00175388,60958.0,60957.0,1.42677227]
[1724130837633,0.00175388,60958.0,60957.0,1.34318395]
[1724130837848,0.00175388,60958.0,60957.0,1.3863496]
[1724130838143,0.00175388,60958.0,60957.0,1.46786725]
[1724130838430,0.00175388,60958.0,60957.0,1.38634942]
[1724130840837,0.00175388,60958.0,60957.0,2.27850942]
[1724130843034,0.00175388,60958.0,60957.0,2.16510942]
[1724130843238,0.00175388,60958.0,60957.0,1.87850942]
[1724130843438,0.00175388,60958.0,60957.0,1.26336665]
[1724130843632,0.00175388,60958.0,60957.0,1.30436899]
[1724130847237,0.00175388,60958.0,60957.0,1.4021276]
[1724130847432,0.00175388,60958.0,60957.0,1.42872897]
[1724130848434,0.00175388,60958.0,60957.0,1.42873058]
[1724130848748,0.00175388,60958.0,60957.0,1.33097197]
[1724130848931,0.00175388,60958.0,60957.0,1.33097325]
[1724130850141,0.00175388,60958.0,60957.0,0.45667089]
[1724130851339,0.00175388,60958.0,60957.0,1.17827089]
[1724130852235,0.00175388,60958.0,60957.0,1.04187374]
[1724130852430,0.00175388,60958.0,60957.0,1.27617866]
[1724130852639,0.00175388,60958.0,60957.0,1.15128492]
[1724130852845,0.00175388,60958.0,60957.0,1.27616682]
[1724130855540,0.00175388,60958.0,60957.0,1.16276682]
[1724130855743,0.00175388,60958.0,60957.0,1.1516561]
[1724130856348,0.00175388,60958.0,60957.0,1.17827528]
[1724130857045,0.00175388,60958.0,60957.0,1.15166435]
[1724130857346,0.00175388,60958.0,60957.0,1.17827455]
[1724130858042,0.00175388,60958.0,60957.0,1.27619351]
[1724130858240,0.00175388,60958.0,60957.0,1.17827455]
[1724130858743,3.77084,60961.0,60960.0,0.081976]
[1724130858950,3.77,60961.0,60960.0,0.55456415]
[1724130859248,3.77,60961.0,60960.0,0.45667055]
[1724130859948,0.00024612,60963.0,60962.0,0.081973]
[1724130860143,0.00024612,60963.0,60962.0,0.70406755]
[1724130860341,0.00024612,60963.0,60962.0,0.66306167]
[1724130860535,0.00024612,60963.0,60962.0,0.7040586]
[1724130860942,0.00024612,60963.0,60962.0,0.61178967]
[1724130861138,0.00024612,60963.0,60962.0,0.70403261]
[1724130861542,0.00024612,60963.0,60962.0,0.70503261]
[1724130861739,0.00024612,60963.0,60962.0,0.7050272]
[1724130862145,0.00724612,60963.0,60962.0,0.58115071]
[1724130863151,0.00724612,60963.0,60962.0,0.55455407]
[1724130864552,0.00724612,60963.0,60962.0,0.55455458]
[1724130867644,0.00724612,60963.0,60962.0,0.55454871]
[1724130868646,0.00724612,60963.0,60962.0,0.51139327]
[1724130868947,0.00724612,60963.0,60962.0,0.51355245]
[1724130869254,0.00724612,60963.0,60962.0,0.55454955]
[1724130870053,0.00724612,60963.0,60962.0,0.56554845]
[1724130870246,0.00724612,60963.0,60962.0,0.69042566]
[1724130872754,0.00724612,60963.0,60962.0,0.58064997]
[1724130872954,0.00724612,60963.0,60962.0,0.69042497]
[1724130877146,0.00724612,60963.0,60962.0,0.56554776]
[1724130879749,0.00724612,60963.0,60962.0,0.52455066]
[1724130879953,0.08921812,60963.0,60962.0,0.4315779]
[1724130880153,0.98133812,60963.0,60962.0,0.48050109]
[1724130880459,0.98133812,60963.0,60962.0,0.4315779]
[1724130880659,0.98104035,60963.0,60962.0,0.4315779]
[1724130880850,1.06301235,60963.0,60962.0,0.4315779]
[1724130881258,0.98133812,60963.0,60962.0,0.4315779]
[1724130882767,0.99190937,60963.0,60962.0,0.4315779]
[1724130882953,0.99190937,60963.0,60962.0,0.41404636]
[1724130883666,1.0735836,60963.0,60962.0,0.41404636]
[1724130884163,1.0735836,60963.0,60962.0,0.05324636]
[1724130884554,1.0735836,60963.0,60962.0,0.05324973]
[1724130884757,0.99190937,60963.0,60962.0,0.05324973]
[1724130884958,0.99190937,60963.0,60962.0,0.02762697]
[1724130885155,1.05742329,60963.0,60962.0,0.07655016]
[1724130885357,0.99190937,60963.0,60962.0,0.07655016]
[1724130885561,0.99190937,60963.0,60962.0,0.18995016]
[1724130886260,0.99190937,60963.0,60962.0,0.18992623]
[1724130886462,0.05636998,60963.0,60962.0,0.1841903]
[1724130886667,0.05636998,60963.0,60962.0,0.3313784]
[1724130886866,0.00724612,60963.0,60962.0,0.2661633]
[1724130888360,0.00724612,60963.0,60962.0,0.39104557]
[1724130888558,0.00724612,60963.0,60962.0,0.55652004]
[1724130888759,0.00724612,60963.0,60962.0,0.55635522]
[1724130889367,0.00724612,60963.0,60962.0,0.44293851]
[1724130889563,0.00724612,60963.0,60962.0,0.45860973]
[1724130890466,0.00724612,60963.0,60962.0,0.34520973]
[1724130890669,0.00724612,60963.0,60962.0,0.1527633]
[1724130890865,0.05636998,60963.0,60962.0,0.13597194]
[1724130891069,0.05636459,60963.0,60962.0,0.0707903]
[1724130891463,0.00724612,60963.0,60962.0,0.05325351]
[1724130891754,0.00724612,60963.0,60962.0,0.07079075]
[1724130891959,0.05636375,60963.0,60962.0,0.05325351]
[1724130892169,0.00724612,60963.0,60962.0,0.002]
[1724130892465,0.00724612,60963.0,60962.0,0.07079083]
[1724130892769,0.05636188,60963.0,60962.0,0.05325316]
[1724130893468,0.06691643,60963.0,60962.0,0.05325316]
[1724130893867,0.01780067,60963.0,60962.0,0.07079042]
[1724130895775,0.13120067,60963.0,60962.0,0.07079042]
[1724130896065,1.02332067,60963.0,60962.0,0.07079042]
[1724130896464,1.02332067,60963.0,60962.0,0.04516384]
[1724130896668,1.02332067,60963.0,60962.0,0.04517044]
[1724130897169,1.02332067,60963.0,60962.0,0.04517057]
[1724130897371,1.02332067,60963.0,60962.0,0.02762658]
[1724130897568,1.10529267,60963.0,60962.0,0.04517057]
[1724130897772,1.10529267,60963.0,60962.0,0.07652281]
[1724130898574,1.38412067,60963.0,60960.0,0.04889623]
[1724130898784,1.38412067,60963.0,60953.0,0.081985]
[1724130898785,0.081976,60960.0,60959.0,0.04889623]
[1724130899070,0.081976,60960.0,60957.0,0.1134]
[1724130899071,0.14745778,60960.0,60957.0,0.04889623]
[1724130899668,0.556179,60958.0,60957.0,0.04889623]
[1724130899861,0.4742,60958.0,60954.0,0.04889623]
[1724130900067,0.14747148,60956.0,60954.0,0.04889623]
[1724130900372,0.08189241,60961.0,60955.0,1.00525123]
[1724130900566,0.00524612,60963.0,60960.0,0.4742]
[1724130900761,0.00524612,60963.0,60961.0,0.51340673]
[1724130901070,0.00524612,60963.0,60962.0,0.04317019]
[1724130901471,0.00524612,60963.0,60962.0,0.02562336]
[1724130901666,0.00524612,60963.0,60962.0,0.04316191]
[1724130901667,0.00024612,60963.0,60962.0,0.04316191]
[1724130901869,0.00124612,60963.0,60962.0,0.15656191]
[1724130902067,0.00124612,60963.0,60962.0,0.22174535]
[1724130902673,0.00824612,60963.0,60962.0,0.22274878]
[1724130903677,0.00824612,60963.0,60962.0,0.14002336]
[1724130903972,0.00824612,60963.0,60962.0,0.001]
[1724130903973,0.97456612,60963.0,60962.0,0.001]
[1724130904174,1.04005375,60963.0,60962.0,0.04990299]
[1724130904480,1.37456612,60963.0,60962.0,0.001]
[1724130904878,1.38518584,60963.0,60962.0,0.001]
[1724130905175,1.38518584,60963.0,60958.0,0.04890299]
[1724130905373,0.1134,60960.0,60957.0,0.13088299]
[1724130905573,0.17888742,60960.0,60957.0,0.13088299]
[1724130906475,0.06548742,60960.0,60957.0,0.08198]
[1724130906671,0.70760742,60960.0,60957.0,0.13088299]
[1724130906869,0.70760742,60960.0,60957.0,0.08198]
[1724130906870,0.49212,60959.0,60957.0,0.08198]
[1724130907273,0.49216,60958.0,60957.0,0.08198]
[1724130907472,0.0981,60959.0,60957.0,0.08198]
[1724130907680,0.59026,60959.0,60957.0,0.08198]
[1724130908078,0.49216,60958.0,60957.0,0.08198]
[1724130908479,0.49216,60958.0,60957.0,0.13088299]
[1724130908480,4.26216,60958.0,60957.0,0.13088299]
[1724130909682,4.26216,60958.0,60957.0,0.08198]
[1724130910584,4.43216,60958.0,60957.0,0.10760978]
[1724130911483,4.43316,60958.0,60957.0,0.10760978]
[1724130912385,3.941,60958.0,60957.0,0.10760978]
[1724130912585,3.94,60958.0,60957.0,0.15651277]
[1724130912781,3.941,60958.0,60957.0,0.15651277]
[1724130913471,3.941,60958.0,60957.0,0.10760978]
[1724130914880,3.941,60958.0,60957.0,0.10761021]
[1724130915283,3.771,60958.0,60957.0,0.1565132]
[1724130915484,3.771,60958.0,60957.0,0.10761021]
[1724130915977,3.771,60958.0,60957.0,0.15648635]
[1724130916387,0.00024612,60963.0,60962.0,0.081973]
[1724130916575,0.00024612,60963.0,60962.0,0.79507245]
[1724130918089,0.00724612,60963.0,60962.0,0.79607245]
[1724130918786,0.00724612,60963.0,60962.0,0.7960581]
[1724130919183,0.00724612,60963.0,60962.0,0.79605809]
[1724130920484,0.00724612,60963.0,60962.0,0.87751759]
[1724130920882,0.00724612,60963.0,60962.0,0.80697846]
[1724130921081,0.3608,60975.0,60974.0,0.081957]
[1724130922284,0.3748,60975.0,60974.0,0.082957]
[1724130922586,0.3758,60975.0,60974.0,0.083957]
[1724130924691,0.015,60975.0,60974.0,0.47037767]
[1724130924881,0.015,60975.0,60974.0,0.75387767]
[1724130925087,0.015,60975.0,60974.0,0.47037767]
[1724130925694,0.015,60975.0,60974.0,0.48086882]
[1724130926300,0.015,60975.0,60974.0,0.52957861]
[1724130926987,0.015,60975.0,60974.0,0.5295775]
[1724130928397,0.015,60975.0,60974.0,0.48086771]
[1724130928586,0.015,60975.0,60974.0,0.59416771]
[1724130933900,0.015,60975.0,60974.0,0.56854815]
[1724130935396,0.015,60975.0,60974.0,0.59416772]
[1724130935795,0.015,60975.0,60974.0,0.56854815]
[1724130935994,0.015,60975.0,60974.0,0.59416772]
[1724130936891,0.015,60975.0,60974.0,0.56854815]
[1724130937598,0.00024612,60981.0,60980.0,0.081949]
[1724130937801,0.3608,61000.0,60998.0,0.081925]
[1724130938003,0.3608,61000.0,60999.0,0.1133]
[1724130938393,0.3608,61000.0,60998.0,0.081925]
[1724130939493,0.3608,61000.0,60999.0,0.001]
[1724130939694,0.014,61000.0,60999.0,0.3618]
[1724130939911,0.014,61000.0,60999.0,1.2536]
[1724130940204,0.014,61000.0,60999.0,1.35152693]
[1724130940397,0.014,61000.0,60999.0,1.33937965]
[1724130940599,0.014,61000.0,60999.0,1.62257965]
[1724130940802,0.014,61000.0,60999.0,1.19697338]
[1724130941107,0.014,61000.0,60999.0,0.70517338]
[1724130941308,0.014,61000.0,60999.0,0.42197338]
[1724130941507,0.00024459,61005.0,61000.0,0.081922]
[1724130941697,0.00024459,61005.0,61004.0,0.3608]
[1724130942904,0.00024459,61005.0,61004.0,0.3618]
[1724130943407,0.00024459,61005.0,61004.0,0.3628]
[1724130945105,1.25280459,61005.0,61004.0,0.002]
[1724130945312,0.08193,60995.0,60989.0,0.3608]
[1724130945499,0.4537,60994.0,60989.0,0.3608]
[1724130945700,4.2237,60994.0,60989.0,0.3608]
[1724130946512,0.081933,60992.0,60989.0,0.3608]
[1724130946711,0.0494,60991.0,60989.0,0.3608]
[1724130947997,4.22466001,60994.0,60989.0,0.3608]
[1724130948203,0.2296,61025.0,60996.0,0.081927]
[1724130948204,0.0484,61001.0,60996.0,0.081927]
[1724130948500,0.0484,61001.0,60996.0,0.442727]
[1724130949601,0.0484,61001.0,60996.0,0.443727]
[1724130949805,0.0494,61001.0,60996.0,0.443727]
[1724130950004,0.0494,61001.0,60996.0,0.082927]